fUSD/lending_fUSD_20260302
["ID","MTS","AMOUNT","RATE_DAILY","PERIOD"]
[407458235,1772495582331,-500.0,0.00017808,2]
[407458236,1772495582342,-682.31,0.00017808,2]
[407458237,1772495582352,-676.612402,0.00017808,2]
[407458238,1772495582362,-704.6,0.00017808,2]
[407458239,1772495582372,-1115.04,0.00017808,2]
[407458240,1772495582382,-500.0,0.00017808,2]
[407458241,1772495582394,-500.0,0.00017808,2]
[407458242,1772495582405,-682.31,0.00017808,2]
[407458243,1772495582415,-704.6,0.00017808,2]
[407458244,1772495582425,-1115.04,0.00017808,2]
[407458245,1772495582435,-500.0,0.00017808,2]
[407458246,1772495582445,-682.31,0.00017808,2]
[407458247,1772495582456,-151.0,0.00017808,2]
[407458248,1772495582466,-500.0,0.00017808,2]
[407458249,1772495582476,-500.0,0.00017808,2]
[407458250,1772495582486,-704.6,0.00017808,2]
[407458251,1772495582497,-1115.04,0.00017808,2]
[407458252,1772495582508,-682.31,0.00017808,2]
[407458253,1772495582518,-500.0,0.00017808,2]
[407458254,1772495582529,-500.0,0.00017808,2]
[407458255,1772495582539,-500.0,0.00017808,2]
[407458256,1772495582549,-704.6,0.00017808,2]
[407458257,1772495582560,-682.31,0.00017808,2]
[407458258,1772495582569,-500.0,0.00017808,2]
[407458259,1772495582580,-1115.04,0.00017808,2]
[407458260,1772495582589,-500.0,0.00017808,2]
[407458261,1772495582599,-500.0,0.00017808,2]
[407458262,1772495582609,-704.6,0.00017808,2]
[407458263,1772495582619,-500.0,0.00017808,2]
[407458264,1772495582630,-682.31,0.00017808,2]
[407458265,1772495582640,-1115.04,0.00017808,2]
[407458266,1772495582653,-500.0,0.00017808,2]
[407458267,1772495582665,-500.0,0.00017808,2]
[407458268,1772495582674,-704.6,0.00017808,2]
[407458269,1772495582685,-500.0,0.00017808,2]
[407458270,1772495582695,-682.31,0.00017808,2]
[407458271,1772495582705,-1115.04,0.00017808,2]
[407458272,1772495582715,-500.0,0.00017808,2]
[407458273,1772495582725,-704.6,0.00017808,2]
[407458274,1772495582735,-500.0,0.00017808,2]
[407458275,1772495582746,-682.31,0.00017808,2]
[407458276,1772495582756,-500.0,0.00017808,2]
[407458277,1772495582766,-500.0,0.00017808,2]
[407458278,1772495582775,-500.0,0.00017808,2]
[407458279,1772495582785,-500.0,0.00017808,2]
[407458280,1772495582795,-682.31,0.00017808,2]
[407458281,1772495582804,-704.6,0.00017808,2]
[407458282,1772495582814,-500.0,0.00017808,2]
[407458283,1772495582824,-291.56540677,0.00017808,2]
[407458284,1772495582833,-500.0,0.00017808,2]
[407458285,1772495582843,-500.0,0.00017808,2]
[407458286,1772495582852,-682.31,0.00017808,2]
[407458287,1772495582862,-500.0,0.00017808,2]
[407458288,1772495582871,-704.6,0.00017808,2]
[407458289,1772495582881,-500.0,0.00017808,2]
[407458290,1772495582891,-682.31,0.00017808,2]
[407458291,1772495582901,-500.0,0.00017808,2]
[407458292,1772495582910,-500.0,0.00017808,2]
[407458293,1772495582920,-500.0,0.00017808,2]
[407458294,1772495582929,-1115.04,0.00017808,2]
[407458295,1772495582939,-704.6,0.00017808,2]
[407458296,1772495582948,-500.0,0.00017808,2]
[407458297,1772495582957,-500.0,0.00017808,2]
[407458298,1772495582967,-500.0,0.00017808,2]
[407458299,1772495582976,-500.0,0.00017808,2]
[407458300,1772495582986,-682.31,0.00017808,2]
[407458301,1772495582996,-500.0,0.00017808,2]
[407458302,1772495583007,-1115.04,0.00017808,2]
[407458303,1772495583017,-704.6,0.00017808,2]
[407458304,1772495583027,-500.0,0.00017808,2]
[407458305,1772495583038,-500.0,0.00017808,2]
[407458306,1772495583048,-682.31,0.00017808,2]
[407458307,1772495583058,-500.0,0.00017808,2]
[407458308,1772495583068,-500.0,0.00017808,2]
[407458309,1772495583077,-1115.04,0.00017808,2]
[407458310,1772495583087,-704.6,0.00017808,2]
[407458311,1772495583098,-500.0,0.00017808,2]
[407458312,1772495583109,-682.31,0.00017808,2]
[407458313,1772495583119,-500.0,0.00017808,2]
[407458314,1772495583129,-500.0,0.00017808,2]
[407458315,1772495583140,-1115.04,0.00017808,2]
[407458316,1772495583151,-500.0,0.00017808,2]
[407458317,1772495583159,-500.0,0.00017808,2]
[407458318,1772495583169,-704.6,0.00017808,2]
[407458319,1772495583179,-500.0,0.00017808,2]
[407458320,1772495583193,-682.31,0.00017808,2]
[407458321,1772495583203,-500.0,0.00017808,2]
[407458322,1772495583213,-500.0,0.00017808,2]
[407458323,1772495583222,-1115.04,0.00017808,2]
[407458324,1772495583234,-500.0,0.00017808,2]
[407458325,1772495583244,-704.6,0.00017808,2]
[407458326,1772495583254,-500.0,0.00017808,2]
[407458327,1772495583264,-682.31,0.00017808,2]
[407458328,1772495583274,-531.85528258,0.00017808,2]
[407458329,1772495583284,-500.0,0.00017808,2]
[407458330,1772495583294,-500.0,0.00017808,2]
[407458331,1772495583304,-1115.04,0.00017808,2]
[407458332,1772495583314,-500.0,0.00017808,2]
[407458333,1772495583324,-704.6,0.00017808,2]
[407458334,1772495583334,-500.0,0.00017808,2]
[407458335,1772495583343,-682.31,0.00017808,2]
[407458336,1772495583353,-500.0,0.00017808,2]
[407458337,1772495583363,-500.0,0.00017808,2]
[407458338,1772495583373,-500.0,0.00017808,2]
[407458339,1772495583383,-500.0,0.00017808,2]
[407458340,1772495583393,-704.6,0.00017808,2]
[407458341,1772495583403,-1115.04,0.00017808,2]
[407458342,1772495583413,-423.23834372,0.00017808,2]
[407458343,1772495583423,-1148.1,0.00017808,2]
[407458344,1772495583432,-500.0,0.00017808,2]
[407458345,1772495583442,-500.0,0.00017808,2]
[407458346,1772495583453,-500.0,0.00017808,2]
[407458347,1772495583463,-500.0,0.00017808,2]
[407458348,1772495583474,-704.6,0.00017808,2]
[407458349,1772495583484,-682.31,0.00017808,2]
[407458350,1772495583495,-1115.04,0.00017808,2]
[407458351,1772495583505,-1148.1,0.00017808,2]
[407458352,1772495583515,-500.0,0.00017808,2]
[407458353,1772495583525,-500.0,0.00017808,2]
[407458354,1772495583535,-500.0,0.00017808,2]
[407458355,1772495583546,-373.23011197,0.00017808,2]
[407458356,1772495583555,-704.6,0.00017808,2]
[407458357,1772495583565,-500.0,0.00017808,2]
[407458358,1772495583575,-682.31,0.00017808,2]
[407458359,1772495583585,-1115.13127614,0.00017808,2]
[407458360,1772495583594,-500.0,0.00017808,2]
[407458361,1772495583604,-500.0,0.00017808,2]
[407458362,1772495583613,-500.0,0.00017808,2]
[407458363,1772495583622,-704.6,0.00017808,2]
[407458364,1772495583632,-1148.1,0.00017808,2]
[407458365,1772495583642,-682.31,0.00017808,2]
[407458366,1772495583652,-500.0,0.00017808,2]
[407458367,1772495583662,-500.0,0.00017808,2]
[407458368,1772495583671,-500.0,0.00017808,2]
[407458369,1772495583681,-500.0,0.00017808,2]
[407458370,1772495583691,-1148.1,0.00017808,2]
[407458371,1772495583700,-682.31,0.00017808,2]
[407458372,1772495583710,-704.6,0.00017808,2]
[407458373,1772495583720,-500.0,0.00017808,2]
[407458374,1772495583730,-500.0,0.00017808,2]
[407458375,1772495583741,-212.56181434,0.00017808,2]
[407458376,1772495583752,-1148.1,0.00017808,2]
[407458377,1772495583762,-500.0,0.00017808,2]
[407458378,1772495583773,-500.0,0.00017808,2]
[407458379,1772495583784,-631.93667939,0.00017808,2]
[407458380,1772495583795,-500.0,0.00017808,2]
[407458381,1772495583806,-682.31,0.00017808,2]
[407458382,1772495583817,-1148.1,0.00017808,2]
[407458383,1772495583827,-500.0,0.00017808,2]
[407458384,1772495583837,-500.0,0.00017808,2]
[407458385,1772495583848,-682.31,0.00017808,2]
[407458386,1772495583858,-1148.1,0.00017808,2]
[407458387,1772495583867,-500.0,0.00017808,2]
[407458388,1772495583877,-704.81541901,0.00017808,2]
[407458389,1772495583889,-500.0,0.00017808,2]
[407458390,1772495583899,-726.91,0.00017808,2]
[407458391,1772495583910,-500.0,0.00017808,2]
[407458392,1772495583919,-682.54784655,0.00017808,2]
[407458393,1772495583929,-1148.1,0.00017808,2]
[407458394,1772495583940,-500.0,0.00017808,2]
[407458395,1772495583950,-500.0,0.00017808,2]
[407458396,1772495583960,-500.0,0.00017808,2]
[407458397,1772495583971,-726.91,0.00017808,2]
[407458398,1772495583981,-1148.1,0.00017808,2]
[407458399,1772495583991,-500.0,0.00017808,2]
[407458400,1772495584002,-500.0,0.00017808,2]
[407458401,1772495584011,-500.0,0.00017808,2]
[407458402,1772495584020,-1148.1,0.00017808,2]
[407458403,1772495584032,-726.91,0.00017808,2]
[407458404,1772495584044,-500.0,0.00017808,2]
[407458405,1772495584054,-500.0,0.00017808,2]
[407458406,1772495584063,-500.0,0.00017808,2]
[407458407,1772495584151,-1148.1,0.00017808,2]
[407458408,1772495584163,-726.91,0.00017808,2]
[407458409,1772495584173,-569.44000541,0.00017808,2]
[407458410,1772495584183,-500.0,0.00017808,2]
[407458411,1772495584196,-500.0,0.00017808,2]
[407458412,1772495584205,-1148.1,0.00017808,2]
[407458413,1772495584215,-800.92398376,0.00017808,2]
[407458414,1772495584226,-782.66419685,0.0001782,10]
[407458415,1772495584236,-42632.88894616,0.0001783,2]
[407458416,1772495584246,-150.0,0.00017835,2]
[407458417,1772495584257,-443.0,0.00017863,2]
[407458418,1772495584267,-500.0,0.00017863,2]
[407458419,1772495584277,-150.0,0.00017867,2]
[407458420,1772495584287,-150.0,0.00017871,2]
[407458421,1772495584296,-150.0,0.00017874,2]
[407458422,1772495584306,-266.0,0.0001788,2]
[407458423,1772495584316,-266.452,0.00017887,2]
[407458424,1772495584326,-150.0,0.00017888,2]
[407458425,1772495584335,-500.0,0.00017899,2]
[407458426,1772495584345,-500.0,0.00017899,2]
[407458427,1772495584355,-1277.68,0.00017899,2]
[407458428,1772495584364,-528.92,0.00017899,2]
[407458429,1772495584374,-790.18,0.00017899,2]
[407458430,1772495584384,-500.0,0.00017899,2]
[407458431,1772495584393,-572.38,0.00017899,2]
[407458432,1772495584402,-502.65,0.00017899,2]
[407458433,1772495584412,-415.63016821,0.00017899,2]
[407458434,1772495584422,-500.0,0.00017899,2]
[407458435,1772495584433,-791.79,0.00017899,2]
[407458436,1772495584443,-751.81,0.00017899,2]
[407458437,1772495584453,-500.0,0.00017899,2]
[407458438,1772495584463,-850.85,0.00017899,2]
[407458439,1772495584472,-536.57,0.00017899,2]
[407458440,1772495584482,-926.63,0.00017899,2]
[407458441,1772495584491,-500.0,0.00017899,2]
[407458442,1772495584501,-710.14,0.00017899,2]
[407458443,1772495584511,-561.73,0.00017899,2]
[407458444,1772495584521,-500.0,0.00017899,2]
[407458445,1772495584533,-591.65,0.00017899,2]
[407458446,1772495584542,-500.0,0.00017899,2]
[407458447,1772495584553,-500.0,0.00017899,2]
[407458448,1772495584564,-548.73,0.00017899,2]
[407458449,1772495584574,-2012.01,0.00017899,2]
[407458450,1772495584584,-500.0,0.00017899,2]
[407458451,1772495584594,-675.64,0.00017899,2]
[407458452,1772495584605,-1030.57,0.00017899,2]
[407458453,1772495584615,-12280.0,0.000179,2]
[407458454,1772495584625,-443.0,0.00017918,2]
[407458455,1772495584636,-500.0,0.00017918,2]
[407458456,1772495584647,-160.28,0.00017925,30]
[407458457,1772495584656,-160.28,0.00017925,30]
[407458458,1772495584666,-160.27,0.00017925,30]
[407458459,1772495584677,-435.0,0.00017948,2]
[407458460,1772495584689,-1041.0,0.00017962,2]
[407458461,1772495584699,-619.0,0.00017962,2]
[407458462,1772495584710,-3500.0,0.00017962,2]
[407458463,1772495584720,-1342.74,0.00017962,2]
[407458464,1772495584732,-1278.0,0.00017962,2]
[407458465,1772495584742,-150.0,0.00017962,2]
[407458466,1772495584752,-1233.491,0.00017962,2]
[407458467,1772495584762,-3743.0,0.00017962,2]
[407458468,1772495584771,-413.0,0.00017962,2]
[407458469,1772495584780,-400.0,0.0001797,2]
[407458470,1772495584790,-400.0,0.0001797,2]
[407458471,1772495584801,-400.0,0.0001797,2]
[407458472,1772495584811,-400.0,0.0001797,2]
[407458473,1772495584821,-650.0,0.0001797,2]
[407458474,1772495584831,-400.0,0.0001797,2]
[407458475,1772495584843,-532.113379,0.0001797,2]
[407458476,1772495584853,-443.0,0.00017972,2]
[407458477,1772495584863,-500.0,0.00017972,2]
[407458478,1772495584873,-500.0,0.00017973,2]
[407458479,1772495584882,-500.0,0.00017973,2]
[407458480,1772495584892,-500.0,0.00017973,2]
[407458481,1772495584902,-500.0,0.00017973,2]
[407458482,1772495584911,-500.0,0.00017973,2]
[407458483,1772495584920,-500.0,0.00017973,2]
[407458484,1772495584930,-500.0,0.00017973,2]
[407458485,1772495584942,-500.0,0.00017973,2]
[407458486,1772495584952,-500.0,0.00017973,2]
[407458487,1772495584962,-277.29366352,0.00017973,2]
[407458488,1772495584971,-500.0,0.00017973,2]
[407458489,1772495584981,-500.0,0.00017973,2]
[407458490,1772495584992,-161.65449444,0.00017973,2]
[407458491,1772495585002,-516.26947686,0.00017973,2]
[407458492,1772495585012,-160.16613146,0.00017973,2]
[407458493,1772495585022,-506.16907504,0.00017973,2]
[407458494,1772495585032,-500.0,0.00017973,2]
[407458495,1772495585042,-500.0,0.00017973,2]
[407458496,1772495585052,-500.0,0.00017973,2]
[407458497,1772495585062,-500.0,0.00017973,2]
[407458498,1772495585072,-500.0,0.00017973,2]
[407458499,1772495585082,-500.0,0.00017973,2]
[407458500,1772495585093,-500.0,0.00017973,2]
[407458501,1772495585103,-500.0,0.00017973,2]
[407458502,1772495585113,-500.0,0.00017973,2]
[407458503,1772495585123,-158.55923873,0.00017973,2]
[407458504,1772495585133,-500.0,0.00017973,2]
[407458505,1772495585143,-500.0,0.00017973,2]
[407458506,1772495585152,-500.0,0.00017973,2]
[407458507,1772495585161,-500.0,0.00017973,2]
[407458508,1772495585172,-500.0,0.00017973,2]
[407458509,1772495585182,-500.0,0.00017973,2]
[407458510,1772495585197,-286.32631111,0.00017973,2]
[407458511,1772495585206,-500.0,0.00017973,2]
[407458512,1772495585216,-500.0,0.00017973,2]
[407458513,1772495585226,-379.26799721,0.00017973,2]
[407458514,1772495585236,-500.0,0.00017973,2]
[407458515,1772495585246,-501.38825786,0.00017973,2]
[407458516,1772495585256,-500.0,0.00017973,2]
[407458517,1772495585268,-500.0,0.00017973,2]
[407458518,1772495585278,-500.0,0.00017973,2]
[407458519,1772495585288,-500.19690273,0.00017973,2]
[407458520,1772495585298,-500.0,0.00017973,2]
[407458521,1772495585307,-501.89260553,0.00017973,2]
[407458522,1772495585318,-500.0,0.00017973,2]
[407458523,1772495585328,-161.16766659,0.00017973,2]
[407458524,1772495585338,-500.0,0.00017973,2]
[407458525,1772495585348,-167.75323326,0.00017973,2]
[407458526,1772495585357,-161.85837589,0.00017973,2]
[407458527,1772495585367,-500.0,0.00017973,2]
[407458528,1772495585377,-500.0,0.00017973,2]
[407458529,1772495585387,-500.0,0.00017973,2]
[407458530,1772495585397,-515.77611511,0.00017973,2]
[407458531,1772495585406,-512.81532777,0.00017973,2]
[407458532,1772495585415,-500.0,0.00017973,2]
[407458533,1772495585425,-570.51899736,0.00017973,2]
[407458534,1772495585435,-500.0,0.00017973,2]
[407458535,1772495585445,-150.0,0.00017974,2]
[407458536,1772495585455,-150.0,0.00017979,2]
[407458537,1772495585464,-150.0,0.0001798,2]
[407458538,1772495585474,-500.0,0.00017982,2]
[407458539,1772495585483,-151.0,0.00017997,2]
[407458540,1772495585493,-151.0,0.00017997,2]
[407458541,1772495585503,-500.0,0.00017999,2]
[407458542,1772495585513,-528.42816415,0.00017999,2]
[407458543,1772495585522,-300.0,0.00017999,2]
[407458544,1772495585532,-500.0,0.00017999,2]
[407458545,1772495585541,-500.0,0.00017999,2]
[407458546,1772495585550,-500.0,0.00017999,2]
[407458547,1772495585560,-390.0845251,0.00017999,2]
[407458548,1772495585570,-1277.68,0.00017999,2]
[407458549,1772495585579,-1277.68,0.00017999,2]
[407458550,1772495585588,-1277.68,0.00017999,2]
[407458551,1772495585597,-1277.68,0.00017999,2]
[407458552,1772495585607,-528.92,0.00017999,2]
[407458553,1772495585616,-1277.68,0.00017999,2]
[407458554,1772495585625,-528.92,0.00017999,2]
[407458555,1772495585635,-1277.81,0.00017999,2]
[407458556,1772495585645,-528.92,0.00017999,2]
[407458557,1772495585655,-528.92,0.00017999,2]
[407458558,1772495585664,-528.92,0.00017999,2]
[407458559,1772495585675,-529.08230144,0.00017999,2]
[407458560,1772495585684,-790.18,0.00017999,2]
[407458561,1772495585694,-790.18,0.00017999,2]
[407458562,1772495585703,-500.0,0.00017999,2]
[407458563,1772495585712,-790.18,0.00017999,2]
[407458564,1772495585722,-500.0,0.00017999,2]
[407458565,1772495585731,-790.18,0.00017999,2]
[407458566,1772495585741,-247.70170359,0.00017999,2]
[407458567,1772495585751,-790.18,0.00017999,2]
[407458568,1772495585760,-790.3912785,0.00017999,2]
[407458569,1772495585769,-572.38,0.00017999,2]
[407458570,1772495585779,-572.38,0.00017999,2]
[407458571,1772495585789,-572.38,0.00017999,2]
[407458572,1772495585799,-572.38,0.00017999,2]
[407458573,1772495585808,-572.38,0.00017999,2]
[407458574,1772495585818,-572.48435274,0.00017999,2]
[407458575,1772495585828,-502.65,0.00017999,2]
[407458576,1772495585838,-502.65,0.00017999,2]
[407458577,1772495585847,-502.65,0.00017999,2]
[407458578,1772495585856,-502.65,0.00017999,2]
[407458579,1772495585865,-502.65,0.00017999,2]
[407458580,1772495585875,-502.8211263,0.00017999,2]
[407458581,1772495585885,-500.0,0.00017999,2]
[407458582,1772495585894,-500.0,0.00017999,2]
[407458583,1772495585904,-500.0,0.00017999,2]
[407458584,1772495585914,-163.3461614,0.00017999,2]
[407458585,1772495585924,-791.79,0.00017999,2]
[407458586,1772495585933,-791.79,0.00017999,2]
[407458587,1772495585943,-791.79,0.00017999,2]
[407458588,1772495585952,-791.79,0.00017999,2]
[407458589,1772495585962,-751.81,0.00017999,2]
[407458590,1772495585971,-791.79,0.00017999,2]
[407458591,1772495585981,-751.81,0.00017999,2]
[407458592,1772495585990,-791.86273452,0.00017999,2]
[407458593,1772495586000,-751.81,0.00017999,2]
[407458594,1772495586010,-751.81,0.00017999,2]
[407458595,1772495586019,-751.81,0.00017999,2]
[407458596,1772495586029,-751.99318666,0.00017999,2]
[407458597,1772495586039,-223.32836065,0.00017999,2]
[407458598,1772495586049,-850.85,0.00017999,2]
[407458599,1772495586059,-850.85,0.00017999,2]
[407458600,1772495586069,-850.85,0.00017999,2]
[407458601,1772495586079,-850.85,0.00017999,2]
[407458602,1772495586088,-850.85,0.00017999,2]
[407458603,1772495586098,-851.04112044,0.00017999,2]
[407458604,1772495586108,-536.57,0.00017999,2]
[407458605,1772495586118,-536.57,0.00017999,2]
[407458606,1772495586128,-536.57,0.00017999,2]
[407458607,1772495586138,-536.57,0.00017999,2]
[407458608,1772495586148,-536.57,0.00017999,2]
[407458609,1772495586158,-536.65345895,0.00017999,2]
[407458610,1772495586169,-926.63,0.00017999,2]
[407458611,1772495586179,-926.63,0.00017999,2]
[407458612,1772495586192,-926.63,0.00017999,2]
[407458613,1772495586202,-926.63,0.00017999,2]
[407458614,1772495586212,-926.63,0.00017999,2]
[407458615,1772495586222,-926.6517494,0.00017999,2]
[407458616,1772495586231,-500.0,0.00017999,2]
[407458617,1772495586241,-500.0,0.00017999,2]
[407458618,1772495586251,-452.12006875,0.00017999,2]
[407458619,1772495586261,-710.14,0.00017999,2]
[407458620,1772495586272,-710.14,0.00017999,2]
[407458621,1772495586282,-710.14,0.00017999,2]
[407458622,1772495586292,-710.14,0.00017999,2]
[407458623,1772495586301,-710.14,0.00017999,2]
[407458624,1772495586311,-710.31642725,0.00017999,2]
[407458625,1772495586321,-561.73,0.00017999,2]
[407458626,1772495586331,-561.73,0.00017999,2]
[407458627,1772495586340,-561.73,0.00017999,2]
[407458628,1772495586350,-561.73,0.00017999,2]
[407458629,1772495586360,-561.73,0.00017999,2]
[407458630,1772495586370,-561.93472687,0.00017999,2]
[407458631,1772495586379,-500.0,0.00017999,2]
[407458632,1772495586388,-460.61731949,0.00017999,2]
[407458633,1772495586398,-591.65,0.00017999,2]
[407458634,1772495586408,-591.65,0.00017999,2]
[407458635,1772495586419,-591.65,0.00017999,2]
[407458636,1772495586430,-591.65,0.00017999,2]
[407458637,1772495586440,-591.65,0.00017999,2]
[407458638,1772495586449,-591.74468963,0.00017999,2]
[407458639,1772495586459,-530.55557556,0.00017999,2]
[407458640,1772495586468,-500.0,0.00017999,2]
[407458641,1772495586479,-500.0,0.00017999,2]
[407458642,1772495586489,-183.41478111,0.00017999,2]
[407458643,1772495586498,-548.73,0.00017999,2]
[407458644,1772495586508,-548.73,0.00017999,2]
[407458645,1772495586518,-548.73,0.00017999,2]
[407458646,1772495586533,-548.73,0.00017999,2]
[407458647,1772495586543,-548.73,0.00017999,2]
[407458648,1772495586553,-548.91814339,0.00017999,2]
[407458649,1772495586563,-2012.01,0.00017999,2]
[407458650,1772495586572,-2012.01,0.00017999,2]
[407458651,1772495586582,-2012.01,0.00017999,2]
[407458652,1772495586592,-2012.01,0.00017999,2]
[407458653,1772495586601,-2012.01,0.00017999,2]
[407458654,1772495586611,-2012.17289525,0.00017999,2]
[407458655,1772495586621,-500.0,0.00017999,2]
[407458656,1772495586630,-500.0,0.00017999,2]
[407458657,1772495586640,-500.0,0.00017999,2]
[407458658,1772495586650,-500.0,0.00017999,2]
[407458659,1772495586659,-439.95640683,0.00017999,2]
[407458660,1772495586669,-675.64,0.00017999,2]
[407458661,1772495586678,-675.64,0.00017999,2]
[407458662,1772495586688,-675.64,0.00017999,2]
[407458663,1772495586697,-675.64,0.00017999,2]
[407458664,1772495586707,-675.64,0.00017999,2]
[407458665,1772495586717,-675.72814765,0.00017999,2]
[407458666,1772495586727,-1030.57,0.00017999,2]
[407458667,1772495586736,-1030.57,0.00017999,2]
[407458668,1772495586746,-1030.57,0.00017999,2]
[407458669,1772495586755,-1030.57,0.00017999,2]
[407458670,1772495586764,-1030.57,0.00017999,2]
[407458671,1772495586774,-1030.71288112,0.00017999,2]
[407458672,1772495586784,-300.0,0.00017999,2]
[407458673,1772495586794,-292.6907697,0.00017999,2]
[407458674,1772495586804,-196.69022154,0.00017999,2]
[407458675,1772495586814,-3789160.50038528,0.00018,2]
[407458676,1772495588214,-1750.0,0.00018,2]
[407458677,1772495588227,-3601.57639355,0.00018,2]
[407458678,1772495588251,-500.0,0.000108,2]
[407458679,1772495588261,-726.91,0.00017808,2]
[407458680,1772495588272,-164589.07848076,0.00018,2]
[407458681,1772495588284,-2179.26069336,0.00018,2]
[407458682,1772495589396,-348.6689342,0.00010855,2]
[407458683,1772495589429,-151.3310658,0.00010855,2]
[407458684,1772495589438,-328.0,0.0001091,2]
[407458685,1772495589448,-150.0,0.00016,2]
[407458686,1772495589457,-60.0289342,0.00017808,2]
[407458687,1772495589477,-439.9710658,0.00017808,2]
[407458688,1772495589487,-1148.1,0.00017808,2]
[407458689,1772495589497,-500.0,0.00017808,2]
[407458690,1772495589507,-591.92202689,0.00017808,2]
[407458691,1772495589516,-500.0,0.00017808,2]
[407458692,1772495589527,-500.0,0.00017808,2]
[407458693,1772495589537,-726.91,0.00017808,2]
[407458694,1772495589547,-1148.1,0.00017808,2]
[407458695,1772495589556,-500.0,0.00017808,2]
[407458696,1772495589565,-726.91,0.00017808,2]
[407458697,1772495589575,-500.0,0.00017808,2]
[407458698,1772495589584,-1148.1,0.00017808,2]
[407458699,1772495589593,-500.0,0.00017808,2]
[407458700,1772495589603,-517.35844496,0.00017808,2]
[407458701,1772495589612,-500.0,0.00017808,2]
[407458702,1772495589622,-500.0,0.00017808,2]
[407458703,1772495589631,-726.91,0.00017808,2]
[407458704,1772495589641,-1148.1,0.00017808,2]
[407458705,1772495589650,-500.0,0.00017808,2]
[407458706,1772495589659,-500.0,0.00017808,2]
[407458707,1772495589669,-500.0,0.00017808,2]
[407458708,1772495589679,-726.91,0.00017808,2]
[407458709,1772495589689,-1148.1,0.00017808,2]
[407458710,1772495589699,-500.0,0.00017808,2]
[407458711,1772495589709,-726.91,0.00017808,2]
[407458712,1772495589719,-500.0,0.00017808,2]
[407458713,1772495589729,-500.0,0.00017808,2]
[407458714,1772495589739,-1148.1,0.00017808,2]
[407458715,1772495589748,-587.59846189,0.00017808,2]
[407458716,1772495595058,-500.0,8.976e-05,2]
[407458717,1772495595082,-150.0,8.976e-05,2]
[407458718,1772495595106,-250.0,9.003e-05,2]
[407458719,1772495595129,-500.0,9.031e-05,2]
[407458720,1772495595152,-352.0,9.086e-05,2]
[407458723,1772495674337,183.391283,0.00013779,7]
[407458724,1772495787425,-300.0,8.979e-05,2]
[407458725,1772495787457,-5000.0,8.979e-05,2]
[407458726,1772495787486,-492.0,9.002e-05,2]
[407458727,1772495787519,-150.0,9.002e-05,2]
[407458728,1772495787551,-1200.0,9.002e-05,2]
[407458729,1772495787585,-300.0,9.002e-05,2]
[407458730,1772495787619,-500.0,9.003e-05,2]
[407458731,1772495787652,-500.0,9.003e-05,2]
[407458732,1772495787686,-840.86137844,9.003e-05,2]
[407458733,1772495787741,-500.0,9.003e-05,2]
[407458736,1772495945420,160.28,0.0001546,30]
[407458737,1772495947108,160.28,0.0001546,30]
[407458738,1772495948898,160.29,0.0001546,30]